bitfinex/quotes_ETHUSD_20250822
["timestamp","ask_amount","ask_price","bid_price","bid_amount"]
[1755870335557,0.5286,4319.1,4319.0,4.696]
[1755870335785,0.0992,4319.1,4319.0,7.01135077]
[1755870337155,0.02,4319.8,4319.7,2.31497557]
[1755870337352,0.02,4319.8,4319.7,27.10673847]
[1755870337585,1e-08,4319.8,4319.7,27.22273847]
[1755870338085,1e-08,4319.8,4319.7,27.22253664]
[1755870338245,1e-08,4319.8,4319.7,27.31832464]
[1755870338452,1e-08,4319.8,4319.7,29.68046427]
[1755870338694,1e-08,4320.5,4320.4,2.31460049]
[1755870338866,1e-08,4320.5,4320.4,5.84503965]
[1755870339060,1e-08,4320.5,4320.4,10.53003965]
[1755870339360,0.003,4321.1,4321.0,2.3142791]
[1755870339565,0.003,4321.1,4321.0,12.74832727]
[1755870339798,0.4743,4321.1,4321.0,8.7752791]
[1755870340154,0.4743,4321.1,4321.0,1.781]
[1755870340460,0.4743,4321.1,4321.0,8.7742791]
[1755870340692,0.003,4321.1,4321.0,8.7742791]
[1755870340880,0.4743,4321.1,4321.0,1.781]
[1755870341086,0.4743,4321.1,4321.0,8.7712791]
[1755870341287,0.4743,4321.1,4321.0,1.306]
[1755870341495,0.4743,4321.1,4321.0,8.2962791]
[1755870341825,0.003,4321.1,4321.0,8.2962791]
[1755870341968,0.003,4321.1,4321.0,9.12590701]
[1755870342316,0.4743,4321.1,4321.0,1.306]
[1755870342607,0.4743,4321.1,4321.0,6.9862791]
[1755870342913,0.003,4321.1,4321.0,6.9862791]
[1755870343067,0.4743,4321.1,4321.0,6.9862791]
[1755870343266,0.4743,4321.1,4320.3,1.95657741]
[1755870343506,0.4743,4321.1,4321.0,2.3142791]
[1755870343817,0.4743,4321.1,4321.0,4.67]
[1755870344310,0.4743,4321.1,4320.3,1.95657741]
[1755870344311,0.4743,4321.1,4320.3,1.781]
[1755870344468,0.4743,4321.1,4320.3,6.445]
[1755870344895,0.36224455,4321.0,4320.3,6.445]
[1755870345103,0.4713,4320.9,4320.3,6.445]
[1755870345267,0.4713,4320.9,4320.3,1.781]
[1755870345468,0.4713,4320.9,4320.4,4.659]
[1755870345778,0.4713,4320.8,4320.4,4.659]
[1755870345983,0.4713,4320.7,4320.4,4.659]
[1755870346299,0.4713,4320.7,4320.3,1.781]
[1755870346300,2.31927338,4321.1,4320.3,1.781]
[1755870346509,0.005,4321.1,4320.3,1.781]
[1755870347916,0.36727529,4321.1,4320.3,6.428]
[1755870348084,0.36727529,4321.1,4319.8,0.02]
[1755870348287,0.66,4320.9,4319.8,0.02]
[1755870348512,2.31480576,4320.1,4319.8,0.02]
[1755870348715,0.66,4320.6,4318.8,0.02]
[1755870348941,0.66,4319.9,4318.8,0.02]
[1755870349288,0.4713,4319.8,4318.8,0.02]
[1755870349613,0.66,4319.4,4318.8,0.02]
[1755870349801,2.78627105,4319.8,4318.8,0.02]
[1755870349802,0.4713,4319.8,4318.8,0.02]
[1755870350204,0.4713,4319.8,4318.9,0.02315404]
[1755870350400,0.4713,4319.8,4319.0,4.6621535]
[1755870350602,0.36235562,4319.8,4319.7,2.31497557]
[1755870350830,0.36235562,4319.8,4319.7,6.95597557]
[1755870351123,0.4713,4320.6,4319.8,2.31492198]
[1755870351287,0.362299,4320.5,4319.9,4.639]
[1755870351692,0.362299,4320.5,4320.0,2.31476584]
[1755870351929,0.362299,4320.5,4320.1,2.31476068]
[1755870352100,0.362299,4320.5,4319.6,1.781]
[1755870352286,0.4713,4320.4,4319.6,1.781]
[1755870352606,0.362299,4320.5,4319.7,4.65714975]
[1755870352827,0.362299,4320.5,4319.8,0.20928399]
[1755870353037,0.833599,4320.5,4320.2,2.31469569]
[1755870353245,0.833599,4320.5,4319.6,1.781]
[1755870353417,0.362299,4320.5,4319.7,4.86789352]
[1755870353624,0.362299,4320.5,4319.8,0.20974377]
[1755870353952,0.362299,4320.5,4319.9,0.2097232]
[1755870354127,0.362299,4320.5,4320.3,2.31460434]
[1755870354341,0.362299,4320.5,4320.4,2.31460049]
[1755870354541,0.362299,4320.5,4320.4,2.52446643]
[1755870354842,0.362299,4320.5,4320.4,7.14846643]
[1755870355041,0.362299,4320.5,4320.4,4.83386594]
[1755870355247,0.833599,4320.5,4320.4,0.20986594]
[1755870355448,0.833599,4320.5,4320.2,4.624]
[1755870355607,0.4713,4320.4,4320.2,4.624]
[1755870355812,0.362299,4320.5,4320.2,4.624]
[1755870355813,0.362299,4320.5,4320.3,2.31461124]
[1755870356131,0.362299,4320.5,4320.2,4.624]
[1755870356132,0.4913,4320.8,4320.4,0.20994584]
[1755870356334,0.4713,4320.7,4320.5,0.20994584]
[1755870356534,0.4713,4320.7,4320.0,4.614]
[1755870356848,0.4713,4320.7,4319.6,6.395]
[1755870357043,0.12968882,4320.6,4319.6,6.395]
[1755870357244,0.4713,4320.5,4319.6,1.781]
[1755870357546,0.4713,4320.5,4319.6,6.394]
[1755870357916,0.36233176,4320.7,4319.6,6.394]
[1755870357917,0.36233176,4320.7,4319.7,2.31497557]
[1755870358110,0.36233176,4320.7,4319.6,7.26491895]
[1755870358111,1e-08,4321.1,4320.9,2.31433266]
[1755870358312,1e-08,4321.1,4321.0,11.93410546]
[1755870358512,0.01920001,4321.8,4321.7,2.31390425]
[1755870358715,0.01920001,4321.8,4321.7,7.17558782]
[1755870359142,0.01920001,4321.8,4321.7,2.52358782]
[1755870359344,0.01920001,4321.8,4321.7,7.19572686]
[1755870359643,0.01920001,4321.8,4321.7,7.17258782]
[1755870359843,0.02120001,4321.8,4321.7,8.56115866]
[1755870360050,0.02120001,4321.8,4321.7,8.12355866]
[1755870360549,0.02120001,4321.8,4321.7,7.16358782]
[1755870361518,1e-08,4321.8,4321.7,7.60121804]
[1755870361919,1e-08,4321.8,4321.7,10.60121804]
[1755870362113,1e-08,4321.8,4321.7,10.60117049]
[1755870362314,1e-08,4321.8,4321.7,8.8835228]
[1755870362626,1e-08,4321.8,4321.7,11.8835228]
[1755870362826,1e-08,4321.8,4321.7,6.9309228]
[1755870363055,1e-08,4321.8,4321.7,2.5234076]
[1755870363352,1e-08,4321.8,4321.7,7.1514076]
[1755870363555,1e-08,4321.8,4321.7,2.5234076]
[1755870363757,1e-08,4321.8,4321.7,7.1534076]
[1755870364454,1e-08,4321.8,4321.7,4.83650335]
[1755870364656,0.47130001,4321.8,4321.0,2.2523]
[1755870364825,0.47130001,4321.8,4321.0,1.781]
[1755870365026,0.47130001,4321.8,4321.1,4.627]
[1755870365243,0.47130001,4321.8,4321.5,2.31396199]
[1755870365549,0.36218453,4321.7,4321.1,6.94122232]
[1755870365716,0.36218453,4321.7,4321.2,0.02314171]
[1755870365921,1e-08,4321.8,4321.7,2.31390425]
[1755870366166,1e-08,4321.8,4321.0,1.781]
[1755870366334,1e-08,4321.8,4321.7,2.31390425]
[1755870366522,1e-08,4321.8,4321.7,6.93590425]
[1755870366925,1e-08,4321.8,4321.7,7.14542893]
[1755870367178,0.47130001,4321.8,4321.2,1.78]
[1755870367320,0.47130001,4321.8,4319.6,0.87091895]
[1755870367321,0.47130001,4321.8,4320.4,2.31459162]
[1755870367518,0.47130001,4321.8,4320.5,2.31454451]
[1755870367755,0.47130001,4321.8,4320.1,4.62]
[1755870367965,0.47130001,4321.8,4319.8,0.4913]
[1755870367966,2.44,4321.7,4319.8,0.4913]
[1755870368122,2.44,4321.7,4319.8,0.02]
[1755870368123,0.66,4321.5,4319.8,0.02]
[1755870368324,0.66,4321.0,4319.8,0.02]
[1755870368532,30.12945195,4321.4,4318.0,1.78]
[1755870368533,0.66,4320.4,4318.0,1.78]
[1755870368731,3.66,4320.2,4318.4,4.619]
[1755870368930,1.78,4320.1,4318.9,0.02315404]
[1755870369158,0.66,4320.7,4318.4,4.619]
[1755870369344,2.2126,4320.8,4318.9,0.02315404]
[1755870369664,0.8299781,4321.6,4318.9,0.02315404]
[1755870369665,0.36237105,4319.9,4319.0,0.20984883]
[1755870369864,0.43260001,4321.8,4319.2,2.31524356]
[1755870370174,0.36232811,4319.8,4319.7,2.31497557]
[1755870370350,0.4326,4321.7,4319.7,7.06145557]
[1755870370519,0.4326,4321.7,4319.8,2.31490181]
[1755870370723,0.4326,4321.7,4319.9,4.82975258]
[1755870370724,0.4318,4321.7,4319.9,4.82975258]
[1755870370994,0.3622305,4321.3,4320.0,0.20979054]
[1755870371123,0.3622305,4321.3,4320.1,2.52456582]
[1755870371323,0.3622305,4321.3,4320.2,0.20980459]
[1755870371552,0.3622305,4321.3,4320.9,2.31432576]
[1755870371754,0.3622305,4321.3,4320.7,4.616]
[1755870371938,0.3622305,4321.3,4320.5,6.393]
[1755870372258,0.3622305,4321.3,4320.4,4.613]
[1755870372459,0.3622305,4321.3,4321.2,2.31417198]
[1755870372662,0.02000001,4321.8,4321.7,2.31390425]
[1755870373128,0.02000001,4321.8,4321.7,6.92290425]
[1755870373320,0.02000001,4321.8,4321.7,2.31390425]
[1755870373523,0.02000001,4321.8,4321.7,6.94404329]
[1755870373726,0.02000001,4321.8,4321.7,8.02470891]
[1755870373952,0.02000001,4321.8,4321.7,8.23426792]
[1755870374670,0.02000001,4321.8,4321.7,0.20955901]
[1755870374671,1e-08,4321.8,4321.7,0.20955901]
[1755870374882,0.43260001,4321.8,4320.8,0.02]
[1755870375040,0.66,4321.7,4320.8,0.02]
[1755870375240,0.43260001,4321.8,4320.8,0.02]
[1755870375656,3.43260001,4321.8,4320.8,0.02]
[1755870375869,2.31401081,4321.6,4320.8,0.02]
[1755870376070,0.71235621,4321.5,4320.8,0.02]
[1755870376249,0.21565973,4321.4,4320.8,0.02]
[1755870376590,32.31441005,4320.8,4319.8,0.02]
[1755870376732,0.71235621,4320.7,4319.8,0.02]
[1755870376938,0.21565973,4320.6,4319.8,0.02]
[1755870377239,0.92929648,4321.5,4320.0,2.31479457]
[1755870377487,0.92929648,4321.5,4320.2,2.31469898]
[1755870377488,0.43130788,4321.4,4320.2,2.31469898]
[1755870377634,0.4326,4321.5,4320.3,6.96365119]
[1755870377834,0.3622749,4321.7,4320.3,5.7548385]
[1755870378290,0.4326,4321.6,4319.4,0.001]
[1755870378436,0.66,4321.4,4319.4,0.001]
[1755870378638,2.31422554,4321.1,4319.4,0.001]
[1755870378848,0.4326,4321.3,4319.4,0.02415136]
[1755870379074,0.3622756,4321.7,4320.8,0.001]
[1755870379240,0.3622756,4321.7,4320.9,1.78]
[1755870379438,2.31406079,4321.5,4320.8,0.001]
[1755870379639,0.71269075,4321.4,4320.8,0.001]
[1755870379950,0.21581449,4321.3,4320.8,0.001]
[1755870380256,0.79488706,4321.3,4320.8,0.001]
[1755870380464,0.30431616,4321.3,4320.8,0.001]
[1755870380841,0.43368935,4321.8,4320.8,0.001]
[1755870381033,0.43163138,4321.7,4320.8,0.001]
[1755870381237,0.21581569,4321.6,4320.8,0.001]
[1755870381482,0.00200001,4321.8,4320.8,0.001]
[1755870381483,0.5631708,4321.8,4320.8,0.001]
[1755870381695,0.00200001,4321.8,4320.8,0.001]
[1755870381984,0.00200001,4321.8,4321.7,2.31390425]
[1755870382138,0.00200001,4321.8,4321.6,1.78]
[1755870382332,0.00200001,4321.8,4321.5,4.653]
[1755870382333,0.00200001,4321.8,4321.5,1.78]
[1755870382751,0.00200001,4321.8,4321.7,2.31390425]
[1755870383097,0.00200001,4321.8,4321.5,1.78]
[1755870383098,0.00120001,4321.8,4321.5,1.78]
[1755870383590,0.4326,4321.7,4320.8,1.781]
[1755870383803,0.4326,4321.7,4320.8,0.001]
[1755870383955,0.36337832,4321.8,4320.9,2.31433266]
[1755870384159,0.36337832,4321.8,4320.8,0.001]
[1755870384582,0.79597832,4321.8,4320.8,0.001]
[1755870385567,0.36337832,4321.8,4320.8,0.001]
[1755870385767,2.3136901,4322.1,4322.0,6.63662168]
[1755870386094,2.3136901,4322.1,4319.8,2.33486994]
[1755870386095,0.66,4322.0,4319.8,0.02]
[1755870386297,0.66,4322.0,4316.8,0.02]
[1755870386298,6.636421,4318.9,4316.8,0.02]
[1755870386525,3.0,4317.6,4317.3,0.697368]
[1755870386668,3.0,4317.4,4317.3,0.001]
[1755870386868,44.08160599,4317.4,4317.3,0.001]
[1755870387094,10.67592713,4317.4,4317.3,0.001]
[1755870387298,43.28363595,4317.4,4317.3,0.001]
[1755870387472,6.594421,4316.4,4314.2,0.09291]
[1755870387798,0.82790654,4316.1,4312.8,0.4716]
[1755870388096,0.82790654,4315.7,4312.8,0.4716]
[1755870388279,3.0,4315.5,4312.8,0.4716]
[1755870388611,3.0,4315.3,4313.4,0.092915]
[1755870388895,43.58024434,4315.4,4312.8,0.4716]
[1755870388896,3.0,4315.1,4312.8,0.4716]
[1755870389071,36.93809722,4315.0,4312.8,0.4716]
[1755870389397,9.80862203,4314.9,4312.9,0.02318625]
[1755870389568,9.80862203,4314.9,4312.8,0.4716]
[1755870389569,8.85470103,4314.9,4312.8,0.4716]
[1755870389769,0.66,4314.6,4312.8,0.021]
[1755870389963,3.66,4314.2,4312.8,0.021]
[1755870390158,0.66,4313.9,4312.8,0.021]
[1755870390375,2.31841582,4313.3,4312.8,0.021]
[1755870390574,3.0,4313.1,4312.8,0.021]
[1755870390778,8.91300407,4313.0,4312.8,0.021]
[1755870390998,46.60611752,4312.9,4312.8,0.021]
[1755870391387,46.85761752,4312.9,4312.8,0.021]
[1755870391609,41.89811752,4312.9,4312.8,0.021]
[1755870391808,11.23752129,4312.9,4312.8,0.021]
[1755870392131,11.23752129,4312.9,4311.9,0.001]
[1755870392132,3.66,4312.0,4311.9,0.001]
[1755870392282,10.36063753,4312.0,4311.9,0.001]
[1755870392625,10.153,4312.0,4311.9,0.001]
[1755870392800,10.36561941,4312.0,4311.9,0.001]
[1755870393004,42.2490404,4312.0,4311.9,0.001]
[1755870393178,11.5890404,4312.0,4311.9,0.001]
[1755870393375,16.2980404,4312.0,4311.9,0.001]
[1755870393576,49.27714986,4312.0,4311.9,0.001]
[1755870393773,49.50764986,4312.0,4311.9,0.001]
[1755870394209,49.50764986,4312.0,4310.8,0.02]
[1755870394210,10.25442099,4311.9,4310.8,0.02]
[1755870394376,5.58261941,4311.8,4310.8,0.02]
[1755870394578,3.66,4311.6,4310.8,0.02]
[1755870394788,6.59442099,4311.5,4310.8,0.02]
[1755870394990,6.59442099,4311.6,4310.8,0.02]
[1755870395241,3.66,4311.5,4310.8,0.02]
[1755870395382,3.0,4311.2,4310.8,0.02]
[1755870395584,3.0,4311.0,4310.8,0.02]
[1755870395811,9.59442099,4310.9,4310.8,0.02]
[1755870396196,39.59442099,4310.9,4310.8,0.02]
[1755870396375,3.0,4310.8,4309.8,0.00378]
[1755870396580,6.59442099,4310.8,4309.8,0.45438]
[1755870396788,4.7,4311.7,4309.9,0.02320239]
[1755870396995,6.59442099,4311.6,4310.0,0.4506]
[1755870397224,6.59442099,4312.0,4310.7,2.31977674]
[1755870397391,6.59442099,4312.0,4310.5,2.31987084]
[1755870397593,6.59442099,4312.0,4310.6,0.4506]
[1755870397829,7.704,4311.9,4311.8,0.001]
[1755870398106,47.51308423,4311.9,4311.8,0.001]
[1755870398478,44.96342099,4311.9,4311.8,0.001]
[1755870398678,6.59442099,4311.9,4311.8,0.001]
[1755870398879,6.59442099,4312.2,4311.8,0.4694]
[1755870399108,6.59442099,4312.9,4311.8,0.001]
[1755870399311,6.59442099,4312.9,4311.8,0.4694]
[1755870399520,6.59442099,4312.9,4311.9,0.02319163]
[1755870399690,1.784,4313.7,4311.8,0.4694]
[1755870399691,6.59442099,4313.6,4311.8,0.4694]
[1755870399882,0.36294838,4312.7,4312.0,2.3190648]
[1755870400083,0.36294838,4312.7,4311.8,0.4694]
[1755870400084,6.59442099,4312.6,4311.8,0.001]
[1755870400278,4.703,4312.7,4311.8,0.001]
[1755870400484,8.37842099,4312.6,4311.8,0.001]
[1755870400716,6.59442099,4312.5,4311.8,0.001]
[1755870401016,11.29942099,4312.5,4311.8,0.001]
[1755870401182,41.29942099,4312.5,4311.8,0.001]
[1755870401380,11.29542099,4312.4,4311.8,0.001]
[1755870401590,0.2305,4313.5,4311.8,0.001]
[1755870401591,6.59442099,4312.3,4311.9,2.78756324]
[1755870401790,6.59442099,4312.3,4311.8,0.001]
[1755870401791,0.36301494,4312.4,4312.0,2.78750708]
[1755870401991,6.59442099,4312.3,4312.1,0.4684]
[1755870402218,6.59442099,4312.3,4312.2,2.7874019]
[1755870402525,1.784,4314.2,4312.5,2.31881318]
[1755870402820,0.36293848,4313.5,4312.6,1.784]
[1755870403023,6.594421,4313.4,4312.7,0.4684]
[1755870403518,6.594421,4313.4,4312.1,0.4684]
[1755870403721,4.7,4313.3,4312.1,0.4684]
[1755870404022,9.594421,4313.2,4311.8,0.021]
[1755870404227,3.0,4313.0,4312.0,2.31910438]
[1755870404396,6.594421,4312.9,4311.8,0.4894]
[1755870404593,0.3629826,4312.8,4311.8,0.4894]
[1755870404793,6.594421,4312.7,4311.8,0.4894]
[1755870404997,6.594421,4312.7,4311.8,0.71674]
[1755870405343,6.594421,4312.7,4312.6,2.31878681]
[1755870405527,6.594421,4313.4,4312.6,0.4684]
[1755870405716,6.594421,4313.7,4312.6,0.4684]
[1755870405915,6.594421,4313.7,4312.3,1.784]
[1755870405916,36.594421,4313.7,4312.3,1.784]
[1755870406130,3.0,4313.6,4311.8,0.4894]
[1755870406332,6.594421,4313.5,4311.8,0.4894]
[1755870406640,0.032598,4312.3,4311.8,0.021]
[1755870406951,6.594421,4312.2,4311.8,0.021]
[1755870407306,4.689,4312.1,4311.8,0.021]
[1755870407506,6.593621,4312.0,4311.8,0.021]
[1755870407752,6.593621,4312.0,4311.9,2.78756324]
[1755870407951,6.593621,4312.2,4312.1,2.31905568]
[1755870408103,0.032598,4312.3,4312.2,2.3190019]
[1755870408311,0.032598,4312.3,4312.2,2.7874019]
[1755870408508,0.02,4313.8,4313.5,2.31827282]
[1755870408706,0.02,4315.8,4313.8,2.31811199]
[1755870408907,0.36288304,4314.7,4314.0,2.3180343]
[1755870409143,4.687,4315.7,4314.0,2.3180343]
[1755870409346,4.687,4315.7,4314.0,2.7864343]
[1755870409542,4.687,4315.1,4313.9,2.31808217]
[1755870409840,4.687,4315.1,4313.5,1.784]
[1755870410027,4.687,4315.1,4313.8,2.31813446]
[1755870410229,0.36284408,4315.6,4314.0,2.3180343]
[1755870410409,0.36284408,4315.6,4314.4,2.31781939]
[1755870410610,0.36284408,4315.6,4314.7,2.31765823]
[1755870411023,0.36284408,4315.6,4314.7,2.78605823]
[1755870411638,0.02,4315.8,4314.7,2.78605823]
[1755870412028,1e-08,4314.8,4314.7,2.80923481]
[1755870412339,1e-08,4314.8,4314.7,3.47715379]
[1755870412540,1e-08,4314.8,4314.7,3.20694837]
[1755870412711,1e-08,4314.8,4314.7,3.18377179]
[1755870413213,1e-08,4314.8,4314.7,3.29977179]
[1755870413421,1e-08,4314.8,4314.7,7.85477179]
[1755870413621,1e-08,4314.8,4314.7,7.85577179]
[1755870413828,1e-08,4314.8,4314.7,7.97177179]
[1755870414029,1e-08,4314.8,4314.7,3.29977179]
[1755870414223,1e-08,4314.8,4314.7,3.18377179]
[1755870414423,1e-08,4314.8,4314.7,4.96677179]
[1755870414946,1e-08,4314.8,4314.7,7.96677179]
[1755870415931,1e-08,4314.8,4314.7,9.63377179]
[1755870416267,1e-08,4314.8,4314.7,4.10065823]
[1755870417001,1e-08,4314.8,4314.7,4.59223481]
[1755870417206,1e-08,4314.8,4314.7,4.10065823]
[1755870417411,0.00200001,4314.8,4314.7,4.10065823]
[1755870417554,0.02,4315.8,4315.7,2.3171212]
[1755870418089,0.02,4315.8,4315.5,4.653]
[1755870418290,0.02,4315.8,4315.7,2.3171212]
[1755870419191,0.02,4315.8,4315.3,2.31732946]
[1755870419695,0.0192,4315.8,4315.2,4.653]
[1755870419894,0.0192,4315.8,4315.3,2.31733599]
[1755870420202,0.0192,4315.8,4315.4,2.31727379]
[1755870420415,0.0192,4315.8,4315.3,2.31731448]
[1755870420622,0.0192,4315.8,4315.7,2.3171212]
[1755870420969,0.0192,4315.8,4315.7,4.641]
[1755870421367,0.0192,4315.8,4315.6,1.783]
[1755870421768,0.0192,4315.8,4315.6,2.2514]
[1755870422000,0.0192,4315.8,4315.6,6.421]
[1755870422307,0.0192,4315.8,4315.7,2.3171212]
[1755870423278,0.0192,4315.8,4315.7,3.58482682]
[1755870423472,0.0192,4315.8,4315.7,3.60799803]
[1755870423685,0.0192,4315.8,4315.7,3.58482682]
[1755870424288,0.0192,4315.8,4315.7,8.21182682]
[1755870424811,0.0192,4315.8,4315.7,2.7855212]
[1755870425732,0.002,4316.7,4316.6,2.31663809]
[1755870425905,0.002,4316.7,4316.6,4.09963809]
[1755870426072,0.002,4316.7,4316.6,8.71963809]
[1755870426501,0.002,4316.7,4316.6,4.09963809]
[1755870426822,0.002,4316.7,4316.6,1.783]
[1755870427214,0.002,4316.7,4316.0,2.31690771]
[1755870427372,0.002,4316.7,4316.2,4.617]
[1755870427574,0.002,4316.7,4315.0,6.0404]
[1755870427575,0.66,4315.8,4314.1,0.092913]
[1755870427920,0.66,4315.8,4312.8,0.02]
[1755870427921,2.31787902,4314.3,4312.8,0.02]
[1755870428121,1.24185981,4314.8,4312.8,0.02]
[1755870428122,3.82375837,4314.1,4312.8,0.02]
[1755870428272,2.31820547,4313.7,4312.8,0.02]
[1755870428472,0.82478055,4313.3,4312.8,0.02]
[1755870428782,0.12869551,4313.2,4312.8,0.02]
[1755870429697,0.82478055,4314.5,4312.9,0.4472]
[1755870429910,0.12887562,4314.4,4313.0,0.30177381]
[1755870430213,0.12887562,4314.4,4314.1,2.31793594]
[1755870430414,0.12892454,4314.5,4314.4,2.31780739]
[1755870430574,0.12891732,4314.8,4314.5,2.31773226]
[1755870430774,0.62378174,4315.0,4313.9,2.31808804]
[1755870430975,0.12891732,4314.9,4313.9,0.8733088]
[1755870431202,0.49486442,4315.2,4313.6,1.782]
[1755870431203,1.44856229,4315.1,4314.1,2.31797022]
[1755870431386,0.472,4315.2,4313.6,1.782]
[1755870431387,0.82478055,4314.9,4313.6,1.782]
[1755870431715,0.62378174,4314.8,4313.8,2.33813608]
[1755870431922,0.82478055,4314.9,4313.8,0.02]
[1755870431923,0.62378174,4314.7,4313.8,0.02]
[1755870432210,0.11359721,4316.3,4313.8,0.02]
[1755870432211,0.12811732,4314.6,4314.5,2.31776567]
[1755870432378,0.49486442,4315.0,4314.6,2.31771195]
[1755870432579,0.49486442,4315.2,4314.2,4.626]
[1755870432893,0.49486442,4315.1,4314.2,4.626]
[1755870433074,0.82478055,4315.4,4314.2,6.94391522]
[1755870433075,0.49486442,4315.3,4314.2,6.94391522]
[1755870433275,0.49486442,4315.3,4314.3,0.69439152]
[1755870433504,0.49486442,4315.4,4314.3,2.92459152]
[1755870433704,0.49486442,4315.6,4314.3,2.92459152]
[1755870433912,0.02,4315.8,4315.5,2.31722859]
[1755870434095,0.02,4315.8,4315.3,4.619]
[1755870434298,0.3626942,4315.7,4315.1,1.783]
[1755870434505,0.3626942,4315.7,4315.2,2.31737931]
[1755870434698,0.3626942,4315.7,4314.6,2.31766171]
[1755870434876,0.82478055,4315.4,4314.0,4.617]
[1755870435077,1.31964497,4315.3,4313.8,0.021]
[1755870435315,0.82478055,4314.6,4313.8,0.021]
[1755870435522,0.82478055,4314.2,4313.8,0.021]
[1755870435701,0.49486442,4314.1,4313.8,0.021]
[1755870435904,0.82478055,4314.2,4313.8,0.021]
[1755870435905,0.49486442,4314.0,4313.8,0.021]
[1755870436109,0.49486442,4313.9,4313.8,0.021]
[1755870436639,0.96686442,4313.9,4313.8,0.021]
[1755870437330,2.20403525,4313.9,4313.8,0.021]
[1755870437705,1.73203525,4313.9,4313.8,0.021]
[1755870438024,1.73203525,4313.9,4313.8,2.33914177]
[1755870438025,0.49486442,4313.9,4313.8,2.33914177]
[1755870438223,0.49486442,4313.9,4313.8,0.021]
[1755870438595,0.49486442,4313.9,4313.8,2.78634177]
[1755870438794,0.36284078,4314.0,4313.8,0.001]
[1755870439102,0.49486442,4313.9,4313.8,0.001]
[1755870439315,0.36284078,4314.0,4313.8,0.001]
[1755870439895,0.49486442,4313.9,4313.8,0.001]
[1755870440820,0.49486442,4313.9,4313.8,2.31914177]
[1755870441026,0.36284078,4314.0,4313.9,2.31808804]
[1755870441334,0.36284078,4314.0,4313.9,2.76528804]
[1755870441493,0.49486442,4315.0,4314.6,2.31768848]
[1755870441693,0.82811777,4315.2,4314.1,1.783]
[1755870441694,0.49486442,4314.9,4314.1,1.783]
[1755870441891,0.49486442,4315.1,4314.1,1.783]
[1755870442130,0.85762478,4315.0,4314.3,2.31782851]
[1755870442343,0.36276036,4315.0,4314.1,1.783]
[1755870442507,0.36276036,4315.0,4314.2,2.31792684]
[1755870442821,0.36276036,4315.0,4314.2,2.31792521]
[1755870443029,1.32298219,4314.9,4314.1,4.10093398]
[1755870443231,0.49486442,4314.9,4314.4,2.31781672]
[1755870443434,0.36276036,4315.0,4314.1,1.783]
[1755870443743,0.36276036,4315.0,4314.9,2.31755081]
[1755870443941,0.36276036,4315.0,4314.2,0.47037926]
[1755870443942,0.36276036,4315.0,4314.3,0.4472]
[1755870444129,0.36276036,4315.0,4314.9,2.31755081]
[1755870444446,0.36196036,4315.0,4314.9,2.31755081]
[1755870444947,0.36196036,4315.0,4314.9,2.76475081]
[1755870445114,0.02,4315.8,4315.7,2.3171212]
[1755870446940,0.02,4315.8,4315.5,2.31721714]
[1755870447121,0.02,4315.8,4315.1,4.572]
[1755870447323,0.02,4315.8,4315.7,2.3171212]
[1755870447845,0.02,4315.8,4315.7,2.7643212]
[1755870448018,0.02,4315.8,4315.7,3.2956442]
[1755870448215,0.02,4315.8,4315.7,5.26590196]
[1755870448412,0.02,4315.8,4315.7,9.17727299]
[1755870448636,0.02,4315.8,4315.7,8.6691212]
[1755870448844,0.02,4315.8,4315.7,9.1163212]
[1755870449048,0.02,4315.8,4315.7,4.5473212]
[1755870449247,0.02,4315.8,4315.7,9.1153212]
[1755870449436,1e-08,4315.8,4315.7,9.32569317]
[1755870449744,1e-08,4315.8,4315.7,10.48998215]
[1755870450164,1e-08,4315.8,4315.7,4.75769317]
[1755870450320,1e-08,4315.8,4315.7,9.31769317]
[1755870451056,1e-08,4315.8,4315.7,4.75772902]
[1755870451252,0.47400001,4315.8,4313.2,0.4472]
[1755870451546,0.47400001,4315.8,4312.2,14.91012191]
[1755870451547,0.12934339,4315.7,4313.9,0.65786031]
[1755870451749,0.36273737,4315.4,4314.5,2.3177461]
[1755870452052,0.12939829,4315.3,4314.2,1.783]
[1755870452255,0.12939829,4315.3,4314.3,2.31787311]
[1755870452455,0.12939829,4315.3,4314.2,1.783]
[1755870452752,0.36273737,4315.4,4314.3,0.02317873]
[1755870452926,0.36273737,4315.4,4314.4,0.4472]
[1755870453121,0.00200001,4315.8,4315.3,2.31733599]
[1755870453321,0.00200001,4315.8,4315.4,2.31723932]
[1755870453552,0.00200001,4315.8,4315.3,2.31733599]
[1755870453722,0.00200001,4315.8,4315.2,4.581]
[1755870453916,0.00200001,4315.8,4315.7,2.3171212]
[1755870454117,0.00200001,4315.8,4314.5,2.31776193]
[1755870454318,0.00200001,4315.8,4313.9,0.4472]
[1755870454556,0.13138531,4315.8,4314.0,0.23387614]
[1755870454855,0.13138531,4315.8,4313.9,5.0222]
[1755870454856,0.00200001,4315.8,4314.7,2.31765189]
[1755870455024,0.13138531,4315.8,4315.3,2.31729172]
[1755870455221,0.00200001,4315.8,4315.2,2.31738117]
[1755870455458,0.00200001,4315.8,4314.4,1.783]
[1755870455459,0.00200001,4315.8,4314.8,4.577]
[1755870455759,0.00200001,4315.8,4315.4,2.31725747]
[1755870455925,0.00200001,4315.8,4315.4,2.31723162]
[1755870456117,0.00200001,4315.8,4314.6,2.76490997]
[1755870456314,0.00200001,4315.8,4310.4,2.08908961]
[1755870456315,0.00200001,4315.8,4313.2,0.4472]
[1755870456621,0.66,4315.3,4313.4,0.21092488]
[1755870456970,0.66,4314.9,4313.3,0.001]
[1755870457174,1.9125749,4314.8,4313.6,2.31822721]
[1755870457377,1.9125749,4314.8,4313.3,2.31938439]
[1755870457378,0.1295749,4314.7,4313.3,0.001]